[Event "SVK-ch Open 2018"]
[Site "Banska Stiavnica"]
[Date "2018.07.11"]
[Round "5"]
[White "Kanakova, Natalie"]
[Black "Panko, Radoslav"]
[Result "1-0"]
[ECO "A04"]
[WhiteElo "2206"]
[BlackElo "2049"]
[Annotator "NA"]
[PlyCount "109"]
[EventDate "2018.07.07"]
[EventType "swiss"]
[EventCountry "SVK"]
[SourceTitle "playchess.com"]
[Source "ChessBase"]
[SourceQuality "1"]
[TimeControl "40/5400+30:1800+30"]

1. Nf3 {[%emt 0:00:00]} e6 {[%emt 0:00:00]} 2. c4 {[%emt 0:00:00]} Nf6 {[%emt 0:00:49]} 3. e3 {[%emt 0:01:04]} d5 {[%emt 0:00:43]} 4. b3 {[%emt 0:01:22]} Nbd7 {[%emt 0:01:17]} 5. Bb2 {[%emt 0:00:56]} b6 {[%emt 0:00:25]} 6. Nc3 {[%emt 0:03:48]} Bb7 {[%emt 0:01:01]} 7. Qc2 {[%emt 0:03:56]} a6 {[%emt 0:00:48]} 8. Be2 {[%emt 0:09:28]} Bd6 {[%emt 0:00:38]} 9. O-O {[%emt 0:01:24]} O-O $11 {[%emt 0:02:07]} 10. Rac1 {[%emt 0:03:43]} Ne4 {[%emt 0:18:06]} 11. cxd5 {[%emt 0:07:02]} exd5 {[%emt 0:00:44]} 12. Nxe4 {[%emt 0:01:32]} dxe4 {[%emt 0:00:14]} 13. Qc3 {[%emt 0:01:14]} Qf6 {[%emt 0:06:44]} 14. Qxf6 {[%emt 0:03:24]} Nxf6 {[%emt 0:02:15]} 15. Ne5 {[%emt 0:01:18]} Rfe8 {[%emt 0:06:45]} 16. Nc6 {[%emt 0:02:19]} Nd5 {[%emt 0:04:46]} 17. a3 {[%emt 0:09:44]} Ne7 {[%emt 0:02:54]} 18. Ne5 {[%emt 0:02:02]} b5 {[%emt 0:03:39]} 19. f3 {[%emt 0:13:42]} Ng6 {[%emt 0:11:00]} 20. Nc6 {[%emt 0:04:00]} Ne7 {[%emt 0:00:44]} 21. Na5 {[%emt 0:02:13]} Bd5 {[%emt 0:05:01]} 22. fxe4 {[%emt 0:00:16]} Bxe4 {[%emt 0:00:07]} 23. d3 {[%emt 0:00:47]} Bg6 {[%emt 0:00:36]} 24. Nb7 {[%emt 0:05:47]} Rac8 {[%emt 0:04:18]} 25. e4 {[%emt 0:02:31]} f6 {[%emt 0:03:28]} 26. Bg4 {[%emt 0:01:03]} Rb8 {[%emt 0:03:05]} 27. Nxd6 {[%emt 0:00:15]} cxd6 {[%emt 0:00:02]} 28. Rc7 {[%emt 0:00:59]} Bf7 {[%emt 0:00:55]} 29. b4 {[%emt 0:00:22]} f5 {[%emt 0:06:46]} 30. Bxf5 {[%emt 0:05:21]} Nxf5 {[%emt 0:00:40]} 31. Rxf5 {[%emt 0:00:04]} Rf8 {[%emt 0:01:46]} 32. Rc6 {[%emt 0:02:32]} d5 {[%emt 0:04:01]} 33. exd5 {[%emt 0:06:52]} Bg6 {[%emt 0:03:50]} 34. Rg5 {[%emt 0:01:24]} Rbc8 {[%emt 0:02:17]} 35. h4 {[%emt 0:01:17]} Rxc6 {[%emt 0:00:48]} 36. dxc6 {[%emt 0:00:04]} Rc8 {[%emt 0:00:04]} 37. h5 {[%emt 0:00:49]} Bxd3 {[%emt 0:00:02]} 38. Rxg7+ {[%emt 0:00:22]} Kf8 {[%emt 0:00:07]} 39. c7 {[%emt 0:01:43]} Re8 {[%emt 0:00:57]} 40. Rd7 {[%emt 0:00:35]} Bf5 {[%emt 0:00:32]} 41. Rd6 {[%emt 0:05:40]} Bc8 {[%emt 0:26:48]} 42. Rd8 {[%emt 0:00:59]} Kf7 {[%emt 0:01:13]} 43. Kf2 {[%emt 0:02:10]} Bb7 {[%emt 0:04:58]} 44. Bd4 {[%emt 0:01:22]} Rg8 {[%emt 0:00:42]} 45. g3 {[%emt 0:00:11]} Re8 {[%emt 0:01:44]} 46. Bc5 {[%emt 0:00:36]} Bc8 {[%emt 0:00:30]} 47. Kf3 {[%emt 0:01:38]} Rg8 {[%emt 0:00:59]} 48. Kf4 {[%emt 0:01:32]} Re8 {[%emt 0:01:19]} 49. g4 {[%emt 0:00:49]} Rg8 {[%emt 0:00:31]} 50. g5 {[%emt 0:01:04]} Be6 {[%emt 0:00:31]} 51. Rxg8 {[%emt 0:00:29]} Kxg8 {[%emt 0:00:03]} 52. Ke5 {[%emt 0:00:10]} Bg4 {[%emt 0:00:36]} 53. Kf6 {[%emt 0:00:19]} Bc8 {[%emt 0:00:33]} 54. Ke7 {[%emt 0:00:24]} Bg4 {[%emt 0:00:47]} 55. Kd8 {[%emt 0:00:06]} 1-0

[Event "SVK-ch Open 2018"]
[Site "Banska Stiavnica"]
[Date "2018.07.11"]
[Round "5"]
[White "Bombek, Peter"]
[Black "Mandak, Miroslav"]
[Result "1-0"]
[ECO "D60"]
[WhiteElo "2201"]
[BlackElo "1989"]
[Annotator "NA"]
[PlyCount "87"]
[EventDate "2018.07.07"]
[EventType "swiss"]
[EventCountry "SVK"]
[SourceTitle "playchess.com"]
[Source "ChessBase"]
[SourceQuality "1"]
[TimeControl "40/5400+30:1800+30"]

1. d4 {[%emt 0:00:00]} Nf6 {[%emt 0:00:54]} 2. Nf3 {[%emt 0:00:00]} d5 {[%emt 0:01:06]} 3. c4 {[%emt 0:00:00]} e6 {[%emt 0:00:16]} 4. Nc3 {[%emt 0:00:01]} Nbd7 {[%emt 0:00:21]} 5. Bg5 {[%emt 0:01:58]} Be7 {[%emt 0:01:28] LiveBook: 1253 Games} 6. e3 {[%emt 0:00:00]} O-O {[%emt 0:01:55]} 7. Be2 {[%emt 0:00:57]} dxc4 {[%emt 0:05:15]} 8. Bxc4 {[%emt 0:00:34]} Nb6 {[%emt 0:03:02]} 9. Be2 {[%emt 0:04:15]} Nfd5 {[%emt 0:01:04]} 10. Bxe7 {[%emt 0:00:38]} Qxe7 {[%emt 0:00:34]} 11. O-O {[%emt 0:01:06]} c6 {[%emt 0:05:38]} 12. Qd2 {[%emt 0:05:03]} Bd7 {[%emt 0:02:42]} 13. e4 {[%emt 0:02:04]} Nc7 $16 {[%emt 0:01:49]} 14. Rfd1 {[%emt 0:04:33]} Rfd8 {[%emt 0:01:47]} 15. Rac1 {[%emt 0:00:46]} Be8 {[%emt 0:00:37]} 16. Qc2 {[%emt 0:02:54]} f6 {[%emt 0:04:45]} 17. a4 {[%emt 0:02:44]} Bf7 {[%emt 0:03:56]} 18. a5 {[%emt 0:00:33]} Nd7 {[%emt 0:01:19]} 19. Na4 {[%emt 0:05:25]} a6 {[%emt 0:03:28]} 20. Qc3 {[%emt 0:12:10]} Rab8 {[%emt 0:05:16]} 21. h3 {[%emt 0:02:20]} Ne8 {[%emt 0:03:41]} 22. b4 {[%emt 0:06:01]} Nd6 {[%emt 0:06:26]} 23. Nc5 {[%emt 0:02:18]} Nb5 {[%emt 0:07:46]} 24. Bxb5 {[%emt 0:01:31]} cxb5 {[%emt 0:00:10]} 25. Nxd7 {[%emt 0:06:20]} Qxd7 {[%emt 0:05:02]} 26. e5 {[%emt 0:04:41]} Rbc8 {[%emt 0:01:05]} 27. Qe3 {[%emt 0:01:51]} f5 {[%emt 0:10:02]} 28. Rxc8 {[%emt 0:02:33]} Rxc8 {[%emt 0:00:15]} 29. Rc1 {[%emt 0:00:56]} Bh5 {[%emt 0:03:56]} 30. Rxc8+ {[%emt 0:04:03]} Qxc8 {[%emt 0:00:09]} 31. d5 {[%emt 0:00:19]} Bxf3 {[%emt 0:03:20]} 32. Qxf3 {[%emt 0:01:06]} Qc1+ {[%emt 0:07:11]} 33. Kh2 {[%emt 0:00:10]} Qe1 {[%emt 0:00:24]} 34. Qf4 {[%emt 0:04:51]} exd5 {[%emt 0:03:12]} 35. Qxf5 {[%emt 0:00:40]} Qxb4 {[%emt 0:00:26]} 36. Qe6+ {[%emt 0:00:17]} Kf8 {[%emt 0:00:16]} 37. Qc8+ {[%emt 0:00:57]} Ke7 {[%emt 0:00:34]} 38. Qxb7+ {[%emt 0:00:32]} Ke6 {[%emt 0:00:18]} 39. Qxa6+ {[%emt 0:00:50]} Kxe5 {[%emt 0:00:17]} 40. Qa7 {[%emt 0:00:34]} Kf6 {[%emt 0:04:44]} 41. Qb6+ {[%emt 0:33:19]} Kf5 {[%emt 0:30:44]} 42. a6 {[%emt 0:01:18]} Qa4 {[%emt 0:01:34]} 43. a7 {[%emt 0:01:43]} h5 {[%emt 0:00:13]} 44. Qb8 {[%emt 0:00:30]} 1-0

[Event "SVK-ch Open 2018"]
[Site "Banska Stiavnica"]
[Date "2018.07.11"]
[Round "5"]
[White "Kostolansky, Sebastian Lukas"]
[Black "Talla, Vladimir"]
[Result "1/2-1/2"]
[ECO "C77"]
[WhiteElo "2197"]
[BlackElo "2402"]
[Annotator "ChessBase"]
[PlyCount "22"]
[EventDate "2018.07.07"]
[EventType "swiss"]
[EventCountry "SVK"]
[SourceTitle "playchess.com"]
[Source "ChessBase"]
[SourceQuality "1"]
[TimeControl "40/5400+30:1800+30"]

1. e4 {[%emt 0:00:00]} e5 {[%emt 0:03:12]} 2. Nf3 {[%emt 0:00:00]} Nc6 {[%emt 0:00:05]} 3. Bb5 {[%emt 0:00:00]} a6 {[%emt 0:00:04]} 4. Ba4 {[%emt 0:00:00]} Nf6 {[%emt 0:00:08]} 5. d3 {[%emt 0:00:00]} d6 {[%emt 0:00:15]} 6. c3 {[%emt 0:00:05]} g6 {[%emt 0:00:16]} 7. O-O {[%emt 0:00:17]} Bg7 {[%emt 0:00:04]} 8. Re1 {[%emt 0:00:44]} O-O {[%emt 0:00:07]} 9. h3 {[%emt 0:00:44]} b5 {[%emt 0:00:21]} 10. Bc2 {[%emt 0:00:32]} d5 {[%emt 0:00:23]} 11. Bg5 {[%emt 0:12:31]} h6 {[%emt 0:02:00]} 1/2-1/2

[Event "SVK-ch Open 2018"]
[Site "Banska Stiavnica"]
[Date "2018.07.11"]
[Round "5"]
[White "Jozefek, Michal"]
[Black "Zatko, Gregor"]
[Result "1-0"]
[ECO "A33"]
[WhiteElo "2182"]
[BlackElo "2144"]
[Annotator "NA"]
[PlyCount "85"]
[EventDate "2018.07.07"]
[EventType "swiss"]
[EventCountry "SVK"]
[SourceTitle "playchess.com"]
[Source "ChessBase"]
[SourceQuality "1"]
[TimeControl "40/5400+30:1800+30"]

1. Nf3 {[%emt 0:00:00]} c5 {[%emt 0:00:00]} 2. c4 {[%emt 0:00:32]} Nf6 {[%emt 0:00:00]} 3. Nc3 {[%emt 0:00:10]} Nc6 {[%emt 0:00:42]} 4. d4 {[%emt 0:02:02]} cxd4 {[%emt 0:03:52]} 5. Nxd4 {[%emt 0:00:02]} e6 {[%emt 0:04:53]} 6. Ndb5 {[%emt 0:04:35]} Bb4 $11 {[%emt 0:03:35] LiveBook: 110 Games} 7. Nd6+ {[%emt 0:02:32]} Ke7 {[%emt 0:00:20]} 8. Bf4 {[%emt 0:07:21]} Nh5 {[%emt 0:14:35]} 9. Bg5+ {[%emt 0:03:34]} f6 {[%emt 0:00:17]} 10. Nxc8+ {[%emt 0:00:45]} Rxc8 {[%emt 0:00:15]} 11. Bd2 {[%emt 0:00:18]} g6 {[%emt 0:04:18]} 12. e4 {[%emt 0:01:22]} Qb6 {[%emt 0:06:03]} 13. Be2 {[%emt 0:04:12]} Ne5 {[%emt 0:02:39]} 14. Qb3 {[%emt 0:01:35]} Bc5 {[%emt 0:02:30]} 15. O-O {[%emt 0:01:21]} Qc7 {[%emt 0:03:16]} 16. Rad1 {[%emt 0:06:16]} Nc6 {[%emt 0:04:50]} 17. Nb5 {[%emt 0:07:33]} Qe5 {[%emt 0:04:36]} 18. Qd3 {[%emt 0:04:04]} Rhd8 {[%emt 0:07:16]} 19. Bc3 {[%emt 0:00:43]} Qg5 {[%emt 0:00:41]} 20. Bxh5 {[%emt 0:01:06]} Qxh5 {[%emt 0:02:26]} 21. a3 {[%emt 0:05:25]} a5 {[%emt 0:02:09]} 22. Kh1 {[%emt 0:06:33]} Ne5 {[%emt 0:05:28]} 23. Bxe5 {[%emt 0:01:51]} Qxe5 {[%emt 0:00:22]} 24. f4 {[%emt 0:00:44]} Qh5 {[%emt 0:01:02]} 25. Rf3 {[%emt 0:00:45]} Qh6 {[%emt 0:03:13]} 26. Qd2 {[%emt 0:05:59]} d6 {[%emt 0:07:23]} 27. b4 {[%emt 0:00:46]} axb4 {[%emt 0:01:16]} 28. axb4 {[%emt 0:00:02]} Bb6 {[%emt 0:00:17]} 29. Rh3 {[%emt 0:03:18]} Qg7 {[%emt 0:00:20]} 30. Nxd6 {[%emt 0:00:56]} Rxc4 {[%emt 0:01:25]} 31. Nxc4 {[%emt 0:00:31]} Rxd2 {[%emt 0:00:17]} 32. Rxd2 {[%emt 0:00:47]} Bc7 {[%emt 0:00:51]} 33. Rhd3 {[%emt 0:00:28]} Ke8 {[%emt 0:00:06]} 34. Nd6+ {[%emt 0:00:23]} Bxd6 {[%emt 0:01:10]} 35. Rxd6 {[%emt 0:00:03]} Qe7 {[%emt 0:00:11]} 36. g3 {[%emt 0:05:22]} g5 {[%emt 0:10:28]} 37. Kg2 {[%emt 0:03:20]} gxf4 {[%emt 0:00:30]} 38. gxf4 {[%emt 0:00:02]} Qg7+ {[%emt 0:04:48]} 39. Kf3 {[%emt 0:00:13]} Qh6 {[%emt 0:00:00]} 40. Rd8+ {[%emt 0:00:13]} Kf7 {[%emt 0:00:04]} 41. R2d7+ {[%emt 0:30:09]} Kg6 {[%emt 0:30:11]} 42. Rg8+ {[%emt 0:00:05]} Kh5 {[%emt 0:00:05]} 43. Rgg7 1-0

[Event "SVK-ch Open 2018"]
[Site "Banska Stiavnica"]
[Date "2018.07.11"]
[Round "5"]
[White "Macko, Michal"]
[Black "Jablonicky, Martin"]
[Result "1-0"]
[ECO "A10"]
[WhiteElo "2158"]
[BlackElo "2356"]
[Annotator "NA"]
[PlyCount "77"]
[EventDate "2018.07.07"]
[EventType "swiss"]
[EventCountry "SVK"]
[SourceTitle "playchess.com"]
[Source "ChessBase"]
[SourceQuality "1"]
[TimeControl "40/5400+30:1800+30"]

1. c4 {[%emt 0:00:00]} g6 {[%emt 0:00:00]} 2. g3 {[%emt 0:00:00]} Bg7 {[%emt 0:00:00]} 3. Bg2 {[%emt 0:00:04]} Nf6 {[%emt 0:00:11]} 4. Nc3 {[%emt 0:00:11]} O-O {[%emt 0:00:06]} 5. e4 {[%emt 0:00:06]} d6 {[%emt 0:00:04]} 6. Nge2 {[%emt 0:00:04]} c5 {[%emt 0:00:23] LiveBook: 718 Games} 7. O-O {[%emt 0:00:07]} Nc6 {[%emt 0:00:04]} 8. d3 {[%emt 0:00:04]} a6 {[%emt 0:00:04]} 9. a4 {[%emt 0:00:10]} Ne8 {[%emt 0:00:39]} 10. Be3 {[%emt 0:00:56]} Nc7 {[%emt 0:00:23]} 11. d4 {[%emt 0:02:56]} cxd4 {[%emt 0:00:24]} 12. Nxd4 {[%emt 0:00:05]} Ne6 {[%emt 0:06:07]} 13. Nde2 {[%emt 0:00:14]} Nc5 {[%emt 0:04:47]} 14. Rb1 {[%emt 0:12:04]} Nb4 {[%emt 0:01:04]} 15. b3 {[%emt 0:05:58]} Rb8 $14 {[%emt 0:06:22]} 16. Qd2 {[%emt 0:02:15]} Bd7 {[%emt 0:02:37]} 17. Rfd1 {[%emt 0:10:30]} Qc8 {[%emt 0:05:55]} 18. a5 {[%emt 0:12:30]} b6 {[%emt 0:05:09]} 19. axb6 {[%emt 0:02:24]} Rxb6 {[%emt 0:00:20]} 20. Bd4 {[%emt 0:04:25]} Bxd4 {[%emt 0:05:16]} 21. Nxd4 {[%emt 0:00:07]} Qb8 {[%emt 0:07:07]} 22. h3 {[%emt 0:05:13]} Re8 {[%emt 0:18:40]} 23. Nf3 {[%emt 0:06:39]} Nc6 {[%emt 0:03:40]} 24. Qh6 {[%emt 0:01:37]} f6 {[%emt 0:05:26]} 25. e5 {[%emt 0:05:30]} Nxe5 {[%emt 0:07:09]} 26. Nxe5 {[%emt 0:00:29]} fxe5 {[%emt 0:01:05]} 27. Ne4 {[%emt 0:05:33]} Nxe4 {[%emt 0:04:42]} 28. Bxe4 {[%emt 0:00:07]} Bf5 {[%emt 0:00:17]} 29. Bxf5 {[%emt 0:00:09]} gxf5 {[%emt 0:00:03]} 30. Qg5+ {[%emt 0:00:13]} Kh8 {[%emt 0:00:03]} 31. Qxf5 {[%emt 0:00:09]} Rxb3 {[%emt 0:00:25]} 32. c5 {[%emt 0:00:09]} Rxb1 {[%emt 0:01:53]} 33. Rxb1 {[%emt 0:01:31]} Qc8 {[%emt 0:00:31]} 34. Qf7 {[%emt 0:03:22]} Rf8 {[%emt 0:00:14]} 35. Qxe7 {[%emt 0:00:34]} Qf5 {[%emt 0:00:01]} 36. Rb2 {[%emt 0:00:21]} d5 {[%emt 0:04:21]} 37. c6 {[%emt 0:00:08]} d4 {[%emt 0:04:04]} 38. Qxf8+ {[%emt 0:00:59]} Qxf8 {[%emt 0:01:13]} 39. c7 {[%emt 0:00:05]} 1-0

[Event "SVK-ch Open 2018"]
[Site "Banska Stiavnica"]
[Date "2018.07.11"]
[Round "5"]
[White "Cech, Dominik"]
[Black "Urhegyi, Marton"]
[Result "0-1"]
[ECO "C00"]
[WhiteElo "2151"]
[BlackElo "2303"]
[Annotator "NA"]
[PlyCount "82"]
[EventDate "2018.07.07"]
[EventType "swiss"]
[EventCountry "SVK"]
[SourceTitle "playchess.com"]
[Source "ChessBase"]
[SourceQuality "1"]
[TimeControl "40/5400+30:1800+30"]

1. e4 {[%emt 0:05:33]} e6 {[%emt 0:00:05]} 2. d3 {[%emt 0:00:16]} d5 {[%emt 0:02:40]} 3. Nd2 {[%emt 0:02:40]} Nf6 {[%emt 0:02:56]} 4. Ngf3 {[%emt 0:00:59]} b6 {[%emt 0:01:38]} 5. c3 {[%emt 0:04:00]} Bb7 {[%emt 0:00:43]} 6. Qa4+ {[%emt 0:08:43]} Nfd7 {[%emt 0:01:45]} 7. e5 {[%emt 0:04:51]} c5 $11 {[%emt 0:02:48]} 8. Qg4 {[%emt 0:08:49]} Nc6 {[%emt 0:01:47]} 9. Qa4 {[%emt 0:06:46]} Qc7 {[%emt 0:04:00]} 10. d4 {[%emt 0:01:47]} cxd4 {[%emt 0:02:38]} 11. cxd4 {[%emt 0:01:27]} Nb4 {[%emt 0:02:53]} 12. Kd1 {[%emt 0:00:33]} Be7 {[%emt 0:13:57]} 13. a3 {[%emt 0:02:23]} Nc6 {[%emt 0:04:33]} 14. Bd3 {[%emt 0:08:52]} a6 {[%emt 0:08:01]} 15. Qc2 {[%emt 0:04:20]} b5 {[%emt 0:09:34]} 16. Bxh7 {[%emt 0:05:38]} Qb6 {[%emt 0:02:09]} 17. Nb3 {[%emt 0:01:48]} a5 {[%emt 0:04:09]} 18. Be3 {[%emt 0:01:05]} Rc8 {[%emt 0:02:15]} 19. Rc1 {[%emt 0:09:36]} a4 {[%emt 0:02:38]} 20. Nbd2 {[%emt 0:06:36]} b4 {[%emt 0:01:14]} 21. Bd3 {[%emt 0:01:44]} Qa5 {[%emt 0:13:52]} 22. axb4 {[%emt 0:02:03]} Nxb4 {[%emt 0:00:51]} 23. Qb1 {[%emt 0:00:32]} Rxc1+ {[%emt 0:01:06]} 24. Kxc1 {[%emt 0:00:07]} a3 {[%emt 0:03:43]} 25. Nb3 {[%emt 0:01:03]} a2 {[%emt 0:02:06]} 26. Nxa5 {[%emt 0:01:34]} Nxd3+ {[%emt 0:00:22]} 27. Kd2 {[%emt 0:02:46]} axb1=Q {[%emt 0:00:11]} 28. Rxb1 {[%emt 0:00:25]} Bb4+ {[%emt 0:03:10]} 29. Kxd3 {[%emt 0:00:17]} Bxa5 {[%emt 0:00:15]} 30. b4 {[%emt 0:03:38]} Bb6 {[%emt 0:00:06]} 31. h4 {[%emt 0:00:15]} O-O {[%emt 0:00:36]} 32. g4 {[%emt 0:01:19]} Ra8 {[%emt 0:01:04]} 33. h5 {[%emt 0:00:57]} Bd8 {[%emt 0:00:52]} 34. h6 {[%emt 0:01:27]} Ra3+ {[%emt 0:02:33]} 35. Ke2 {[%emt 0:00:19]} Ra2+ {[%emt 0:00:55]} 36. Nd2 {[%emt 0:01:19]} Nb6 {[%emt 0:00:49]} 37. hxg7 {[%emt 0:00:58]} Nc4 {[%emt 0:00:41]} 38. f4 {[%emt 0:00:44]} Ba6 {[%emt 0:00:51]} 39. b5 {[%emt 0:00:28]} Na3 {[%emt 0:01:10]} 40. bxa6 {[%emt 0:00:24]} Nxb1 {[%emt 0:00:17]} 41. a7 {[%emt 0:01:17]} Nxd2 {[%emt 0:02:39]} 0-1

[Event "SVK-ch Open 2018"]
[Site "Banska Stiavnica"]
[Date "2018.07.11"]
[Round "5"]
[White "Demeter, Peter"]
[Black "Sarkozy, Ladislav"]
[Result "1/2-1/2"]
[ECO "A34"]
[WhiteElo "2146"]
[BlackElo "2247"]
[Annotator "NA"]
[PlyCount "34"]
[EventDate "2018.07.07"]
[EventType "swiss"]
[EventCountry "SVK"]
[SourceTitle "playchess.com"]
[Source "ChessBase"]
[SourceQuality "1"]
[TimeControl "40/5400+30:1800+30"]

1. c4 {[%emt 0:00:00]} c5 {[%emt 0:00:02]} 2. g3 {[%emt 0:00:00]} Nf6 {[%emt 0:00:08]} 3. Bg2 {[%emt 0:00:00]} d5 {[%emt 0:00:12]} 4. cxd5 {[%emt 0:00:00]} Nxd5 {[%emt 0:00:07]} 5. Nc3 {[%emt 0:00:02]} Nc7 {[%emt 0:00:10]} 6. Nf3 {[%emt 0:01:19]} Nc6 {[%emt 0:00:17]} 7. O-O {[%emt 0:00:07]} e5 {[%emt 0:00:42]} 8. b3 {[%emt 0:00:37]} Be7 {[%emt 0:01:42]} 9. Bb2 {[%emt 0:00:07] LiveBook: 55 Games} O-O {[%emt 0:02:25]} 10. Rc1 {[%emt 0:02:13]} f6 {[%emt 0:01:13]} 11. Na4 {[%emt 0:07:29]} Na6 {[%emt 0:22:44]} 12. Ne1 $11 {[%emt 0:03:20]} Bd7 {[%emt 0:03:13]} 13. a3 {[%emt 0:06:24]} Rc8 {[%emt 0:01:21]} 14. Nd3 {[%emt 0:05:38]} b6 {[%emt 0:01:47]} 15. f4 {[%emt 0:00:50]} Bd6 {[%emt 0:04:52]} 16. fxe5 {[%emt 0:10:14]} fxe5 {[%emt 0:02:32]} 17. Rxf8+ {[%emt 0:00:52]} Qxf8 {[%emt 0:00:02]} 1/2-1/2

[Event "SVK-ch Open 2018"]
[Site "Banska Stiavnica"]
[Date "2018.07.11"]
[Round "5"]
[White "Hrbek, Stepan"]
[Black "Vojtek, Vladimir"]
[Result "1/2-1/2"]
[ECO "A06"]
[WhiteElo "2129"]
[BlackElo "2310"]
[Annotator "NA"]
[PlyCount "100"]
[EventDate "2018.07.07"]
[EventType "swiss"]
[EventCountry "SVK"]
[SourceTitle "playchess.com"]
[Source "ChessBase"]
[SourceQuality "1"]
[TimeControl "40/5400+30:1800+30"]

1. Nf3 {[%emt 0:00:00]} d5 {[%emt 0:04:15]} 2. e3 {[%emt 0:00:00]} Nf6 {[%emt 0:00:28]} 3. c4 {[%emt 0:00:00]} e6 {[%emt 0:00:35]} 4. b3 {[%emt 0:00:36]} c5 {[%emt 0:00:44]} 5. Bb2 {[%emt 0:02:58]} Nc6 {[%emt 0:01:44]} 6. cxd5 {[%emt 0:12:23]} exd5 {[%emt 0:01:30]} 7. Be2 {[%emt 0:04:46]} Bd6 $11 {[%emt 0:13:23] LiveBook: 44 Games} 8. O-O {[%emt 0:01:44]} O-O {[%emt 0:00:32]} 9. d4 {[%emt 0:01:03]} b6 {[%emt 0:10:56]} 10. Nc3 {[%emt 0:08:28]} Bb7 {[%emt 0:02:34]} 11. dxc5 {[%emt 0:04:32]} bxc5 {[%emt 0:01:10]} 12. Rc1 {[%emt 0:01:14]} Re8 {[%emt 0:19:16]} 13. Nb5 {[%emt 0:15:38]} Bf8 {[%emt 0:02:25]} 14. Bxf6 {[%emt 0:00:10]} gxf6 {[%emt 0:00:22]} 15. Nh4 {[%emt 0:04:40]} a6 {[%emt 0:05:07]} 16. Na3 {[%emt 0:07:17]} Ne5 {[%emt 0:03:50]} 17. Bg4 {[%emt 0:10:40]} Qa5 {[%emt 0:10:05]} 18. Nc2 {[%emt 0:05:27]} Qxa2 {[%emt 0:01:37]} 19. b4 {[%emt 0:03:57]} Qc4 {[%emt 0:09:57]} 20. Nd4 {[%emt 0:01:31]} Qxb4 {[%emt 0:02:38]} 21. Rb1 {[%emt 0:00:21]} Qa5 {[%emt 0:01:08]} 22. Rxb7 {[%emt 0:03:44]} cxd4 {[%emt 0:00:04]} 23. exd4 {[%emt 0:02:59]} Ng6 {[%emt 0:00:22]} 24. Qf3 {[%emt 0:00:19]} Re7 {[%emt 0:01:53]} 25. Rxe7 {[%emt 0:01:17]} Bxe7 {[%emt 0:00:45]} 26. Nf5 {[%emt 0:00:08]} Bf8 {[%emt 0:01:03]} 27. h4 {[%emt 0:02:38]} Rd8 {[%emt 0:00:42]} 28. h5 {[%emt 0:02:21]} Ne7 {[%emt 0:00:04]} 29. Ng3 {[%emt 0:01:41]} Qb6 {[%emt 0:00:14]} 30. Re1 {[%emt 0:01:16]} Qxd4 {[%emt 0:01:05]} 31. h6 {[%emt 0:00:23]} Ng6 {[%emt 0:01:30]} 32. Nh5 {[%emt 0:01:02]} Bxh6 {[%emt 0:00:10]} 33. Nxf6+ {[%emt 0:00:12]} Kh8 {[%emt 0:00:30]} 34. Qf5 {[%emt 0:00:55]} Qf4 {[%emt 0:00:46]} 35. Ra1 {[%emt 0:00:36]} Qxf5 {[%emt 0:01:03]} 36. Bxf5 {[%emt 0:00:04]} Rd6 {[%emt 0:00:55]} 37. Ne8 {[%emt 0:00:22]} Rb6 {[%emt 0:00:20]} 38. Nc7 {[%emt 0:00:09]} Ne7 {[%emt 0:01:14]} 39. Bd3 {[%emt 0:00:51]} Rb3 {[%emt 0:01:21]} 40. Bf1 {[%emt 0:00:42]} Kg7 {[%emt 0:00:41]} 41. Rxa6 {[%emt 0:06:16]} Bg5 {[%emt 0:06:26]} 42. Nxd5 {[%emt 0:01:53]} Rb2 {[%emt 0:05:59]} 43. Nxe7 {[%emt 0:02:21]} Bxe7 {[%emt 0:00:02]} 44. Rc6 {[%emt 0:00:14]} Bd8 {[%emt 0:00:10]} 45. Rc3 {[%emt 0:03:34]} h5 {[%emt 0:00:22]} 46. g3 {[%emt 0:03:06]} h4 {[%emt 0:00:21]} 47. Kg2 {[%emt 0:02:29]} Bb6 {[%emt 0:00:22]} 48. Rf3 {[%emt 0:00:26]} Rxf2+ {[%emt 0:00:30]} 49. Rxf2 {[%emt 0:00:09]} Bxf2 {[%emt 0:00:02]} 50. Kxf2 {[%emt 0:00:08]} hxg3+ {[%emt 0:00:05]} 1/2-1/2

[Event "SVK-ch Open 2018"]
[Site "Banska Stiavnica"]
[Date "2018.07.11"]
[Round "5"]
[White "Bronis, Marian"]
[Black "Chrenko, Kristian"]
[Result "1-0"]
[ECO "D11"]
[WhiteElo "2101"]
[BlackElo "1992"]
[Annotator "NA"]
[PlyCount "47"]
[EventDate "2018.07.07"]
[EventType "swiss"]
[EventCountry "SVK"]
[SourceTitle "playchess.com"]
[Source "ChessBase"]
[SourceQuality "1"]
[TimeControl "40/5400+30:1800+30"]

1. d4 {[%emt 0:00:00]} d5 {[%emt 0:00:00]} 2. Nf3 {[%emt 0:00:17]} Nf6 {[%emt 0:00:28]} 3. c4 {[%emt 0:02:24]} c6 {[%emt 0:00:23]} 4. e3 {[%emt 0:00:35]} a6 {[%emt 0:00:06]} 5. Bd3 {[%emt 0:00:51]} Bg4 {[%emt 0:07:29]} 6. O-O {[%emt 0:01:26]} Nbd7 {[%emt 0:02:54]} 7. Nbd2 {[%emt 0:07:15]} e6 {[%emt 0:06:46]} 8. b3 {[%emt 0:11:38]} Be7 {[%emt 0:06:15]} 9. Bb2 {[%emt 0:03:38]} O-O {[%emt 0:03:05]} 10. Qc2 {[%emt 0:16:40]} Bxf3 {[%emt 0:17:11]} 11. Nxf3 {[%emt 0:01:28]} g6 {[%emt 0:00:08]} 12. Qe2 {[%emt 0:03:17]} Ne4 {[%emt 0:04:58]} 13. Ne1 {[%emt 0:06:44]} Bd6 {[%emt 0:02:26]} 14. f4 {[%emt 0:02:08]} f5 {[%emt 0:04:42]} 15. g4 {[%emt 0:10:09]} Kf7 {[%emt 0:09:24]} 16. Nf3 {[%emt 0:02:48]} Be7 {[%emt 0:01:41]} 17. Kh1 {[%emt 0:02:09]} Rg8 {[%emt 0:03:48]} 18. Bxe4 {[%emt 0:04:40]} dxe4 {[%emt 0:00:49]} 19. Ne5+ {[%emt 0:00:21]} Nxe5 {[%emt 0:00:44]} 20. fxe5 {[%emt 0:02:02]} Bg5 {[%emt 0:08:29]} 21. Rad1 {[%emt 0:00:39]} Qa5 {[%emt 0:01:00]} 22. gxf5 {[%emt 0:01:37]} gxf5 {[%emt 0:00:28]} 23. d5 cxd5 {[%emt 0:01:29]} 24. cxd5 {[%emt 0:00:51]} 1-0